[Event "Portugal Open 2019"]
[Site "Lisbon"]
[Date "2019.02.04"]
[Round "4.34"]
[White "Terryn, Ezra"]
[Black "Godzwon, Iwo"]
[Result "1-0"]
[ECO "B21"]
[WhiteElo "2116"]
[BlackElo "2322"]
[Annotator "NA RC"]
[PlyCount "75"]
[EventDate "2019.01.25"]
[EventType "swiss"]
[EventCountry "POR"]
[SourceTitle "playchess.com"]
[Source "ChessBase"]
[SourceQuality "1"]
[TimeControl "5400+30"]

{[%evp 8,66,-31,-27,-15,32767,32767,32767,32767,-36,-4,32767,85,126,136,71,32767,32767,239,295,32767,410,406,289,410,497,425,552,483,340,32767,397,32767,447,906,32767,916,241,391,130,212,158,887,32767,32767,32767,32767,32767,32767,32767,32767,32767,32767,32767,32767,32767,32767,5590,32767,32767,1341]} 1. e4 {[%emt 0:00:00]} c5 {[%emt 0:00:00]} 2. d4 {[%emt 0:00:26]} cxd4 {[%emt 0:00:00]} 3. c3 {[%emt 0:00:08]} dxc3 {[%emt 0:00:00]} 4. Nxc3 {[%emt 0:00:07]} e6 {[%emt 0:00:00]} 5. Nf3 {[%emt 0:00:54]} a6 {[%emt 0:00:00]} 6. Bc4 {[%emt 0:00:09]} b5 {[%emt 0:00:00]} 7. Bb3 {[%emt 0:00:09]} Bb7 {[%emt 0:00:00]} 8. O-O {[%emt 0:00:15] B21: Sicilian: 2 f4 and Morra Gambit} d6 {[%emt 0:01:43]} (8... Ne7 9. Bg5 f6 10. Be3 Ng6 11. a4 b4 12. Nd5 exd5 13. exd5 Bd6 14. Nd4 Ne7 15. Re1 Kf8 16. Qd2 Qa5 17. Bf4 Qc7 18. Rxe7 Bxf4 19. Qe2 Bxh2+ 20. Kh1 Be5 21. Ne6+ {1-0 (21) Berg,E (2579)-Luch,M (2448) Porto 2016}) 9. Ng5 {[%emt 0:09:02]} h6 $146 {[%emt 0:16:42]} ({Predecessor:} 9... Be7 10. f4 Bxg5 11. fxg5 Ne7 12. Bf4 O-O 13. Qxd6 Nbc6 14. Qc5 Qd4+ 15. Be3 Qxc5 16. Bxc5 {½-½ (27) Esserman,M (2474)-Bartel,M (2260) Warsaw 2016}) 10. Qh5 {[%emt 0:01:59]} ({Weaker is} 10. Nxf7 Kxf7 11. f4 (11. Qg4 $2 Qe7 $19) (11. Qh5+ g6 $17) 11... Nc6 $15) 10... g6 {[%emt 0:00:03]} 11. Qh3 {[%emt 0:00:24]} Qf6 {[%emt 0:10:15]} 12. Nxf7 {[%emt 0:06:49]} Kxf7 {[%emt 0:06:01] [#]} 13. f4 $1 {[%emt 0:00:43]} Qe7 {[%emt 0:22:37]} 14. f5 {[%emt 0:02:11]} Nf6 {[%emt 0:01:15]} 15. fxg6+ {[%emt 0:08:22]} Ke8 {[%emt 0:01:49]} 16. Bxe6 {[%emt 0:02:45]} Bg7 {[%emt 0:01:29]} 17. Bf4 {[%emt 0:11:52]} Nbd7 {[%emt 0:02:20]} 18. Nd5 {[%emt 0:14:33]} Bxd5 {[%emt 0:02:46]} 19. exd5 {[%emt 0:02:00]} Ne5 {[%emt 0:02:48]} 20. Rae1 {[%emt 0:01:42]} Kd8 {[%emt 0:12:26]} (20... Rb8 $142 21. Qa3 Qc7 22. Qxa6 Rb6) 21. Bxe5 {[%emt 0:09:22]} dxe5 {[%emt 0:00:04]} 22. Rxe5 $2 {[%emt 0:00:44]} (22. d6 Qb7 23. Qc3) 22... Ng4 {[%emt 0:02:53]} (22... Rf8 $142) 23. Re2 $2 {[%emt 0:02:17]} (23. Qxg4 $18 {is more deadly.} Qc5+ 24. Kh1 Bxe5 25. g7) 23... Ne5 {[%emt 0:00:47]} (23... Bd4+ $16 24. Kh1 Rf8) 24. Rc2 {[%emt 0:04:46]} Nc4 $2 (24... Rf8) 25. Rf7 {[%emt 0:06:06]} Qc5+ {[%emt 0:10:10]} 26. Kh1 {[%emt 0:00:02]} Ra7 {[%emt 0:00:02]} 27. Qh4+ {[%emt 0:02:46]} Ke8 {[%emt 0:00:09]} 28. Qf4 {[%emt 0:00:40]} Qb6 {[%emt 0:02:16]} 29. b3 {[%emt 0:03:04]} Be5 {[%emt 0:01:52]} 30. g7 {[%emt 0:02:10]} Bxg7 {[%emt 0:00:02]} 31. bxc4 {[%emt 0:00:05]} Rf8 {[%emt 0:00:03]} 32. c5 {[%emt 0:02:44]} Qd8 33. Bd7+ {[%emt 0:03:10]} Qxd7 {[%emt 0:01:23]} 34. Re2+ {[%emt 0:00:06]} Qe7 {[%emt 0:00:02]} 35. Rexe7+ {[%emt 0:00:44]} Rxe7 {[%emt 0:00:02]} 36. Rxe7+ {[%emt 0:00:08]} Kxe7 {[%emt 0:00:02]} 37. Qd6+ {[%emt 0:00:21]} Ke8 {[%emt 0:00:05]} 38. g4 {[%emt 0:00:43]} 1-0

[Event "Portugal Open 2019"]
[Site "Lisbon"]
[Date "2019.02.04"]
[Round "4.37"]
[White "Sousa, Hugo Carneiro"]
[Black "Storme, Isak"]
[Result "0-1"]
[ECO "B22"]
[WhiteElo "2097"]
[BlackElo "2290"]
[Annotator "ChessBase"]
[PlyCount "126"]
[EventDate "2019.01.25"]
[EventType "swiss"]
[EventCountry "POR"]
[SourceTitle "playchess.com"]
[Source "ChessBase"]
[SourceQuality "1"]
[TimeControl "5400+30"]

1. e4 c5 2. c3 b6 3. d4 Bb7 4. Bd3 Nf6 5. Qe2 cxd4 6. cxd4 Nc6 7. Nf3 Nb4 8. Nc3 Nxd3+ 9. Qxd3 e6 10. O-O d5 11. e5 Ne4 12. Ng5 Nxc3 13. Qxc3 Rc8 14. Qd3 h6 15. Nh3 Be7 16. Qg3 g6 17. Bd2 Kf8 18. Rac1 Kg7 19. f4 Qd7 20. Nf2 Ba6 21. Rfe1 Rxc1 22. Rxc1 Rc8 23. Qe3 Rxc1+ 24. Bxc1 Qb5 25. h3 Qf1+ 26. Kh2 h5 27. a3 Be2 28. Nh1 h4 29. Nf2 Kg8 30. Bd2 a5 31. Bc3 Bf8 32. Ng4 Bxg4 33. hxg4 Bh6 34. g5 Bf8 35. Be1 Qb5 36. Qd2 Qf1 37. Bxh4 b5 38. Be1 b4 39. Qe3 bxa3 40. bxa3 Bxa3 41. Bxa5 Bc1 42. Bd2 Bb2 43. Qg1 Qe2 44. Be3 Bc3 45. Qf2 Qd1 46. Qf3 Qd3 47. Qf2 Kf8 48. Qg1 Qe2 49. Qf2 Qd1 50. Qf3 Qd3 51. Qf2 Ke7 52. Qg1 Kd7 53. Qf2 Kc6 54. Qg1 Kb5 55. Qf2 Qd1 56. Kh3 Kc4 57. Qa2+ Kd3 58. Qf2 Be1 59. Qf1+ Kxe3 60. Qg1+ Ke4 61. g3 Qh5+ 62. Kg2 Qf3+ 63. Kh3 Qxg3+ 0-1

[Event "Portugal Open 2019"]
[Site "Lisbon"]
[Date "2019.02.05"]
[Round "5.20"]
[White "Corbalan Gomez, Juan Jose"]
[Black "Rajesh, V A V"]
[Result "0-1"]
[ECO "D79"]
[WhiteElo "2235"]
[BlackElo "2406"]
[Annotator "RC"]
[PlyCount "134"]
[EventDate "2019.01.25"]
[EventType "swiss"]
[EventCountry "POR"]
[SourceTitle "playchess.com"]
[Source "ChessBase"]
[SourceQuality "1"]
[TimeControl "5400+30"]

1. Nf3 Nf6 2. g3 g6 3. Bg2 Bg7 4. O-O O-O 5. c4 c6 6. d4 d5 7. cxd5 cxd5 8. Ne5 e6 9. Nc3 Nfd7 10. Nf3 Nc6 11. Be3 Nf6 12. h3 Ne4 13. Nxe4 dxe4 14. Ne5 Nxe5 15. dxe5 Qa5 16. Bxe4 Qxe5 17. Qc2 Bd7 18. Bxb7 Rab8 19. Bf3 Rxb2 20. Qc5 a5 21. Rfd1 Bb5 22. Qxe5 Bxe5 23. Rab1 Bxe2 24. Bxe2 Rxe2 25. Rb5 Bc3 26. Rd3 Rb2 27. Rxb2 Bxb2 28. Rb3 Bf6 29. Rb5 Bc3 30. Kf1 Rd8 31. Ke2 Kg7 32. Rb3 Bb4 33. a3 Be7 34. Rb5 Rd5 35. a4 Bb4 36. Rb7 Kf6 37. h4 e5 38. Rb8 h5 39. Re8 Rd7 40. f3 Kf5 41. Rb8 Ke6 42. g4 f5 43. gxh5 f4 44. Bf2 gxh5 45. Rh8 Rd2+ 46. Kf1 Ra2 47. Rh6+ Kd5 48. Rxh5 Rxa4 49. Rh8 Ra1+ 50. Kg2 Ra2 51. Kf1 Bc3 52. h5 Bd4 53. Rd8+ Kc4 54. Bxd4 exd4 55. Kg1 Re2 56. h6 Re7 57. Ra8 d3 58. Kf2 d2 59. Rd8 Kc3 60. Rc8+ Kb2 61. Rd8 Kc1 62. Rc8+ Kd1 63. Rc5 Re2+ 64. Kf1 Rh2 65. Rc6 a4 66. Ra6 Kc2 67. Rc6+ Kd3 0-1

[Event "Portugal Open 2019"]
[Site "Lisbon"]
[Date "2019.02.05"]
[Round "5.21"]
[White "Sukandar, Irine Kharisma"]
[Black "Alvarez Serrano, Carlos"]
[Result "1-0"]
[ECO "B90"]
[WhiteElo "2397"]
[BlackElo "2201"]
[Annotator "NA RC"]
[PlyCount "97"]
[EventDate "2019.01.25"]
[EventType "swiss"]
[EventCountry "POR"]
[SourceTitle "playchess.com"]
[Source "ChessBase"]
[SourceQuality "1"]
[TimeControl "5400+30"]

{[%evp 25,97,45,61,44,32767,47,72,38,53,37,70,83,32767,74,109,126,102,43,70,46,43,59,108,64,129,81,135,100,32767,32767,32767,32767,203,177,99,47,152,153,228,125,135,122,134,125,122,32767,161,32767,313,164,318,32767,32767,32767,32767,347,32767,394,406,32767,477,458,572,650,586,32767,32767,808,810,32767,970,935,29998,29999]} 1. e4 {[%emt 0:00:00]} c5 {[%emt 0:00:00]} 2. Nf3 {[%emt 0:00:00]} d6 {[%emt 0:00:05]} 3. d4 {[%emt 0:00:02]} cxd4 {[%emt 0:00:08]} 4. Nxd4 {[%emt 0:00:06]} Nf6 {[%emt 0:00:07]} 5. Nc3 {[%emt 0:00:12]} a6 {[%emt 0:00:07]} 6. f3 {[%emt 0:00:20]} e5 {[%emt 0:00:17]} 7. Nb3 {[%emt 0:00:05]} Be6 {[%emt 0:00:34]} 8. Be3 {[%emt 0:00:19]} Be7 {[%emt 0:00:08]} 9. Qd2 {[%emt 0:00:19]} Qc7 {[%emt 0:00:43]} 10. g4 {[%emt 0:00:41]} O-O {[%emt 0:00:08]} 11. g5 {[%emt 0:03:26]} Nh5 {[%emt 0:00:28]} 12. O-O-O {[%emt 0:00:09]} Rc8 {[%emt 0:00:04]} 13. Nd5 {[%emt 0:12:55]} Bxd5 $1 {[%emt 0:00:41]} 14. exd5 {[%emt 0:00:07]} Nd7 {[%emt 0:02:56]} 15. Bh3 {[%emt 0:04:38]} a5 {[%emt 0:04:42]} 16. Kb1 {[%emt 0:05:10]} a4 {[%emt 0:00:14]} 17. Nc1 {[%emt 0:00:12]} b5 {[%emt 0:05:56]} 18. Nd3 {[%emt 0:03:31]} a3 {[%emt 0:05:51]} 19. b3 {[%emt 0:00:56]} Re8 {[%emt 0:02:52]} 20. Bg4 {[%emt 0:02:06]} Nf4 {[%emt 0:00:16]} 21. Bxf4 {[%emt 0:02:44]} ({White should try} 21. Nxf4 $16 exf4 22. Bxf4) 21... exf4 {[%emt 0:00:09]} 22. Bxd7 {[%emt 0:00:17]} ({Reject} 22. Qxf4 Nb6 $15) 22... Qxd7 {[%emt 0:00:20]} 23. Qxf4 {[%emt 0:00:20]} Qc7 {[%emt 0:06:40]} 24. h4 {[%emt 0:02:26]} Rec8 {[%emt 0:01:19]} 25. Rh2 {[%emt 0:01:11]} h5 {[%emt 0:00:37]} 26. Qb4 {[%emt 0:22:35]} Qd7 {[%emt 0:02:22]} 27. f4 {[%emt 0:01:34]} Bd8 {[%emt 0:00:20]} 28. Qe4 {[%emt 0:01:16]} Qg4 $2 {[%emt 0:05:10]} (28... Bb6 $14) 29. Qe8+ {[%emt 0:03:46]} Kh7 {[%emt 0:00:02]} 30. Qe2 {[%emt 0:00:15]} Qxe2 {[%emt 0:04:01]} (30... Bb6 $1 $14) 31. Rxe2 {[%emt 0:00:02]} Kg6 {[%emt 0:01:00]} (31... Ba5 $16 {might work better.}) 32. f5+ {[%emt 0:01:50]} ({White should try} 32. Nb4 $18) 32... Kxf5 {[%emt 0:01:11]} 33. Rf1+ {[%emt 0:00:05]} Kg6 {[%emt 0:00:21]} 34. Nf4+ {[%emt 0:00:05]} Kh7 {[%emt 0:00:23]} 35. Nxh5 {[%emt 0:00:11]} Rc5 {[%emt 0:01:11]} 36. Nf4 {[%emt 0:00:21]} Rac8 {[%emt 0:00:20]} (36... Rb8 {was worth a try.} 37. Re8 Rbc8) 37. Rg2 {[%emt 0:03:15]} (37. Nd3 $142) 37... R8c7 $2 {[%emt 0:10:09]} (37... R5c7 {was worth a try.} 38. h5 Kg8) 38. h5 {[%emt 0:02:25]} Bxg5 {[%emt 0:01:54]} 39. Rxg5 {[%emt 0:00:15]} Rxc2 {[%emt 0:00:06]} 40. Rg2 {[%emt 0:00:25]} Rxg2 {[%emt 0:00:09]} 41. Nxg2 {[%emt 0:00:01]} Kh6 {[%emt 0:00:09]} 42. Ne3 {[%emt 0:00:41]} Kxh5 {[%emt 0:01:48]} 43. Nf5 {[%emt 0:00:11]} Rd7 {[%emt 0:03:31]} 44. Nxg7+ {[%emt 0:00:24]} Kg6 {[%emt 0:00:36]} 45. Nf5 {[%emt 0:00:18]} b4 {[%emt 0:00:33]} 46. Rf2 {[%emt 0:00:36]} Kg5 {[%emt 0:00:48]} 47. Kc2 {[%emt 0:00:08]} Kf6 {[%emt 0:01:52]} 48. Kd3 {[%emt 0:00:09]} Ke5 {[%emt 0:00:38]} 49. Ne3 {[%emt 0:00:07]} 1-0

[Event "Portugal Open 2019"]
[Site "Lisbon"]
[Date "2019.02.05"]
[Round "5.23"]
[White "Li, Yunshan"]
[Black "Carrasco Martinez, Juan M."]
[Result "1/2-1/2"]
[ECO "A57"]
[WhiteElo "2196"]
[BlackElo "2380"]
[Annotator "RC"]
[PlyCount "128"]
[EventDate "2019.01.25"]
[EventType "swiss"]
[EventCountry "POR"]
[SourceTitle "playchess.com"]
[Source "ChessBase"]
[SourceQuality "1"]
[TimeControl "5400+30"]

1. d4 {[%emt 0:00:00]} Nf6 {[%emt 0:03:05]} 2. c4 {[%emt 0:00:00]} c5 {[%emt 0:00:22]} 3. d5 {[%emt 0:00:00]} b5 {[%emt 0:00:05]} 4. cxb5 {[%emt 0:00:00]} a6 {[%emt 0:00:06]} 5. e3 {[%emt 0:00:00]} d6 {[%emt 0:05:02]} 6. Nc3 {[%emt 0:00:20]} g6 {[%emt 0:00:06]} 7. Nf3 {[%emt 0:00:15]} Bg7 {[%emt 0:00:06]} 8. a4 {[%emt 0:00:22]} O-O {[%emt 0:00:08]} 9. e4 {[%emt 0:00:09]} Nbd7 {[%emt 0:00:14]} 10. Ra3 {[%emt 0:00:25]} Ne8 {[%emt 0:00:28]} 11. Rb3 {[%emt 0:07:40]} axb5 {[%emt 0:01:15]} 12. Bxb5 {[%emt 0:01:33]} Ba6 {[%emt 0:01:31]} 13. O-O {[%emt 0:09:23]} Bxb5 {[%emt 0:02:12]} 14. axb5 {[%emt 0:03:33]} Nb6 {[%emt 0:10:33]} 15. Qc2 {[%emt 0:03:36]} Nc7 {[%emt 0:01:25]} 16. Bf4 {[%emt 0:08:19]} Qd7 {[%emt 0:00:33]} 17. Rd1 {[%emt 0:02:25]} Ra5 {[%emt 0:07:16]} 18. e5 {[%emt 0:01:20]} Rfa8 {[%emt 0:01:13]} 19. h4 {[%emt 0:13:55]} Ra1 {[%emt 0:05:00]} 20. Kh2 {[%emt 0:02:19]} Rxd1 {[%emt 0:07:16]} 21. Qxd1 {[%emt 0:00:58]} Qf5 {[%emt 0:04:39]} 22. Bg3 {[%emt 0:01:10]} dxe5 {[%emt 0:00:19]} 23. Ra3 {[%emt 0:03:15]} Rd8 {[%emt 0:04:34]} 24. Qe1 {[%emt 0:04:03]} f6 {[%emt 0:05:25]} 25. Ra7 {[%emt 0:07:20]} Qc8 {[%emt 0:03:12]} 26. Nd2 {[%emt 0:04:34]} Qb8 {[%emt 0:06:40]} 27. Qa1 {[%emt 0:01:48]} Nc8 {[%emt 0:06:15]} 28. Ra5 {[%emt 0:03:43]} Nd6 {[%emt 0:00:07]} 29. Qa4 {[%emt 0:04:32]} Qb6 {[%emt 0:00:32]} 30. f4 {[%emt 0:01:28]} exf4 {[%emt 0:03:53]} 31. Bxf4 {[%emt 0:00:08]} f5 {[%emt 0:00:11]} 32. Nc4 {[%emt 0:04:11]} Nxc4 {[%emt 0:05:32]} 33. Qxc4 {[%emt 0:00:07]} Kf8 {[%emt 0:03:58]} 34. Ra1 {[%emt 0:00:31]} Bd4 {[%emt 0:04:06]} 35. Rc1 {[%emt 0:02:09]} Qf6 {[%emt 0:00:40]} 36. g3 {[%emt 0:00:42]} Be5 {[%emt 0:00:38]} 37. Bxe5 {[%emt 0:04:13]} Qxe5 {[%emt 0:00:06]} 38. Qxc5 {[%emt 0:00:18]} Rxd5 {[%emt 0:04:28]} 39. Nxd5 {[%emt 0:00:15]} Nxd5 {[%emt 0:00:03]} 40. Rc2 {[%emt 0:01:30]} Qe4 {[%emt 0:00:03]} 41. Qc8+ {[%emt 0:00:34]} Kg7 {[%emt 0:00:21]} 42. Qc4 {[%emt 0:00:17]} Qf3 {[%emt 0:00:51]} 43. Qe2 {[%emt 0:03:09]} Qb3 {[%emt 0:00:04]} 44. Rc5 {[%emt 0:01:46]} Ne3 {[%emt 0:00:42]} 45. Rc3 {[%emt 0:00:24]} Ng4+ {[%emt 0:00:04]} 46. Kg1 {[%emt 0:00:19]} Qb4 {[%emt 0:00:22]} 47. Kg2 {[%emt 0:02:56]} Qd6 {[%emt 0:00:53]} 48. Rd3 {[%emt 0:01:04]} Qc7 {[%emt 0:01:29]} 49. b6 Qc6+ {[%emt 0:00:59]} 50. Kg1 {[%emt 0:01:19]} Qxb6+ {[%emt 0:00:14]} 51. Kf1 {[%emt 0:00:08]} Qb7 {[%emt 0:00:47]} 52. Ke1 {[%emt 0:00:17]} Qb4+ {[%emt 0:00:50]} 53. Kd1 {[%emt 0:00:26]} Qa4+ {[%emt 0:00:29]} 54. Kd2 {[%emt 0:00:53]} Qb4+ {[%emt 0:02:32]} 55. Kc1 {[%emt 0:00:10]} Nf6 {[%emt 0:00:28]} 56. Qe5 {[%emt 0:00:53]} Kf7 {[%emt 0:00:49]} 57. Qc3 {[%emt 0:00:23]} Qe4 {[%emt 0:00:46]} 58. Re3 {[%emt 0:00:38]} Qh1+ {[%emt 0:00:19]} 59. Re1 {[%emt 0:00:16]} Qd5 {[%emt 0:00:52]} 60. Kc2 {[%emt 0:00:44]} Qg2+ {[%emt 0:00:33]} 61. Kb1 {[%emt 0:00:39]} Ne4 {[%emt 0:00:18]} 62. Qc4+ {[%emt 0:00:19]} Kf8 {[%emt 0:00:24]} 63. Qc8+ {[%emt 0:00:38]} Kf7 {[%emt 0:01:01]} 64. Qc4+ {[%emt 0:00:05]} Kf8 {[%emt 0:00:14]} 1/2-1/2

[Event "Portugal Open 2019"]
[Site "Lisbon"]
[Date "2019.02.05"]
[Round "5.25"]
[White "Miedema, David"]
[Black "Maisuradze, Nino"]
[Result "1-0"]
[ECO "B42"]
[WhiteElo "2356"]
[BlackElo "2186"]
[Annotator "RC"]
[PlyCount "139"]
[EventDate "2019.01.25"]
[EventType "swiss"]
[EventCountry "POR"]
[SourceTitle "playchess.com"]
[Source "ChessBase"]
[SourceQuality "1"]
[TimeControl "5400+30"]

1. e4 {[%emt 0:00:00]} c5 {[%emt 0:00:18]} 2. Nf3 {[%emt 0:00:00]} e6 {[%emt 0:03:20]} 3. d4 {[%emt 0:00:00]} cxd4 {[%emt 0:00:01]} 4. Nxd4 {[%emt 0:00:00]} a6 {[%emt 0:00:20]} 5. Bd3 {[%emt 0:00:05]} Nc6 {[%emt 0:05:59]} 6. Nxc6 {[%emt 0:01:00]} bxc6 {[%emt 0:01:47]} 7. O-O {[%emt 0:04:14]} Bc5 {[%emt 0:06:45]} 8. Qg4 {[%emt 0:03:45]} Qf6 {[%emt 0:04:24]} 9. Nc3 {[%emt 0:08:41]} e5 {[%emt 0:11:48]} 10. Qg3 {[%emt 0:07:50]} h6 {[%emt 0:12:40]} 11. Na4 {[%emt 0:01:01]} Ba7 {[%emt 0:01:59]} 12. Be3 {[%emt 0:00:15]} d6 {[%emt 0:00:32]} 13. Bc4 {[%emt 0:09:36]} Be6 {[%emt 0:06:15]} 14. Bxe6 {[%emt 0:04:20]} fxe6 {[%emt 0:00:07]} 15. Rad1 {[%emt 0:01:51]} Bb8 {[%emt 0:10:43]} 16. f4 {[%emt 0:02:32]} Ne7 {[%emt 0:01:52]} 17. fxe5 {[%emt 0:00:27]} Qxe5 {[%emt 0:00:17]} 18. Qxe5 {[%emt 0:06:09]} dxe5 {[%emt 0:00:01]} 19. Nc5 {[%emt 0:00:06]} Ba7 {[%emt 0:00:29]} 20. Nxe6 {[%emt 0:01:15]} Bxe3+ {[%emt 0:00:09]} 21. Kh1 {[%emt 0:00:03]} Bf4 {[%emt 0:07:46]} 22. Nc7+ {[%emt 0:00:30]} Kf7 {[%emt 0:00:06]} 23. Nxa8 {[%emt 0:00:04]} Rxa8 {[%emt 0:00:20]} 24. g3 {[%emt 0:00:05]} g5 {[%emt 0:00:11]} 25. Rd6 {[%emt 0:01:48]} Kg7 {[%emt 0:12:41]} 26. Re6 {[%emt 0:03:24]} Ng6 {[%emt 0:00:59]} 27. Rd1 {[%emt 0:01:23]} Nf8 {[%emt 0:00:41]} 28. Rxc6 {[%emt 0:00:08]} Be3 {[%emt 0:00:12]} 29. Rc3 {[%emt 0:04:07]} Bb6 {[%emt 0:01:45]} 30. Rb3 {[%emt 0:01:33]} Bd4 {[%emt 0:03:54]} 31. c3 {[%emt 0:00:05]} Be3 {[%emt 0:00:07]} 32. Rb7+ {[%emt 0:01:05]} Kf6 {[%emt 0:01:40]} 33. Rd3 {[%emt 0:00:29]} Bc5 {[%emt 0:00:09]} 34. b4 {[%emt 0:00:11]} Be7 {[%emt 0:00:19]} 35. Rb6+ {[%emt 0:00:05]} Kg7 {[%emt 0:00:45]} 36. Rb7 {[%emt 0:02:29]} Ng6 {[%emt 0:00:52]} 37. Rd6 {[%emt 0:00:31]} Rc8 {[%emt 0:02:02]} 38. Rxa6 {[%emt 0:08:50]} Rxc3 {[%emt 0:00:04]} 39. a4 {[%emt 0:00:40]} g4 {[%emt 0:02:22]} 40. Rxg6+ {[%emt 0:01:19]} Kxg6 {[%emt 0:00:03]} 41. Rxe7 {[%emt 0:00:04]} Rc1+ {[%emt 0:03:06]} 42. Kg2 {[%emt 0:00:03]} Rc2+ {[%emt 0:00:28]} 43. Kg1 {[%emt 0:00:03]} Rc1+ {[%emt 0:00:34]} 44. Kf2 {[%emt 0:00:11]} Kf6 {[%emt 0:00:32]} 45. Rd7 {[%emt 0:00:58]} Rc4 {[%emt 0:00:17]} 46. Rd6+ {[%emt 0:04:04]} Kg5 {[%emt 0:00:01]} 47. Rd2 {[%emt 0:00:18]} Rxb4 {[%emt 0:00:12]} 48. Ra2 {[%emt 0:00:03]} Rxe4 {[%emt 0:01:33]} 49. a5 {[%emt 0:00:04]} Rc4 {[%emt 0:00:08]} 50. a6 {[%emt 0:00:02]} Rc8 {[%emt 0:00:02]} 51. Ke3 {[%emt 0:00:09]} Kf5 {[%emt 0:00:16]} 52. a7 {[%emt 0:00:12]} Ra8 {[%emt 0:00:03]} 53. Ra6 {[%emt 0:00:12]} h5 {[%emt 0:00:07]} 54. Ra5 {[%emt 0:00:04]} h4 {[%emt 0:02:24]} 55. Ra6 {[%emt 0:00:12]} hxg3 {[%emt 0:00:14]} 56. hxg3 {[%emt 0:00:03]} e4 {[%emt 0:00:35]} 57. Ra5+ {[%emt 0:00:05]} Ke6 {[%emt 0:00:13]} 58. Kxe4 {[%emt 0:00:05]} Kd6 {[%emt 0:00:07]} 59. Kf4 {[%emt 0:00:05]} Kc6 {[%emt 0:00:05]} 60. Kxg4 {[%emt 0:00:12]} Kb7 {[%emt 0:00:55]} 61. Kf4 {[%emt 0:00:45]} Rf8+ {[%emt 0:00:03]} 62. Rf5 {[%emt 0:00:11]} Rg8 {[%emt 0:00:08]} 63. Rf7+ {[%emt 0:00:08]} Ka8 {[%emt 0:00:03]} 64. Rf6 {[%emt 0:00:36]} Kxa7 {[%emt 0:00:09]} 65. g4 {[%emt 0:00:22]} Kb7 {[%emt 0:00:01]} 66. g5 {[%emt 0:00:21]} Kc7 {[%emt 0:00:11]} 67. Kf5 {[%emt 0:00:20]} Kd7 {[%emt 0:00:49]} 68. Rf7+ {[%emt 0:00:04]} Ke8 {[%emt 0:00:34]} 69. Ra7 {[%emt 0:00:34]} Kf8 {[%emt 0:00:38]} 70. Ke4 1-0

[Event "Portugal Open 2019"]
[Site "Lisbon"]
[Date "2019.02.05"]
[Round "5.26"]
[White "Lisowski, Krzysztof"]
[Black "Rocha, Sergio"]
[Result "1/2-1/2"]
[ECO "B40"]
[WhiteElo "2135"]
[BlackElo "2354"]
[Annotator "NA RC"]
[PlyCount "95"]
[EventDate "2019.01.25"]
[EventType "swiss"]
[EventCountry "POR"]
[SourceTitle "playchess.com"]
[Source "ChessBase"]
[SourceQuality "1"]
[TimeControl "5400+30"]

1. e4 {[%emt 0:00:00]} c5 {[%emt 0:00:00]} 2. Nf3 {[%emt 0:00:00]} e6 {[%emt 0:00:00]} 3. g3 {[%emt 0:01:13]} d5 {[%emt 0:00:13]} 4. exd5 {[%emt 0:00:28]} Qxd5 {[%emt 0:00:12]} (4... exd5 5. d4 Nf6 6. Bg2 Be7 7. O-O O-O 8. dxc5 Bxc5 9. Nc3 Nc6 10. a3 Re8 11. b4 Bb6 12. Bg5 d4 13. Bxf6 Qxf6 14. Nd5 Qd8 15. Nd2 Be6 16. Nf4 Bf5 17. Nd3 Qc7 {1-0 (33) Zvjaginsev,V (2642)-Rublevsky,S (2652) Tula 2019}) 5. Nc3 {[%emt 0:08:06]} Qd8 {[%emt 0:00:32]} 6. d4 {[%emt 0:10:28] B40: Sicilian: 2...e6, Unusual lines} Nf6 {[%emt 0:00:50]} 7. Bg2 {[%emt 0:13:51]} Nc6 {[%emt 0:02:02]} 8. dxc5 $146 {[%emt 0:20:24]} ({Predecessor:} 8. Be3 Ng4 9. O-O Nxe3 10. fxe3 Be7 11. Ne4 Qa5 {½-½ (29) Horvath,Z (2381)-Tompa,J (2371) Hungary 2018}) 8... Qxd1+ {[%emt 0:00:59]} 9. Nxd1 {[%emt 0:03:35]} Bxc5 {[%emt 0:00:14]} 10. a3 {[%emt 0:06:16]} Bd7 {[%emt 0:10:21]} 11. b4 {[%emt 0:05:45]} Bd6 {[%emt 0:00:36]} 12. Bb2 {[%emt 0:00:48]} Ke7 {[%emt 0:00:18]} 13. Ne3 {[%emt 0:01:39]} Rhc8 {[%emt 0:00:31]} 14. O-O-O {[%emt 0:12:22]} Bc7 {[%emt 0:07:11]} 15. Rhe1 {[%emt 0:01:41]} Be8 {[%emt 0:03:06]} 16. Nf5+ {[%emt 0:04:42]} Kf8 {[%emt 0:00:08]} 17. Nd6 {[%emt 0:01:37]} Bxd6 $1 {[%emt 0:09:04]} 18. Rxd6 {[%emt 0:00:06]} Ke7 {[%emt 0:02:12]} 19. Rdd1 {[%emt 0:01:25]} a6 {[%emt 0:15:11]} 20. Nd4 {[%emt 0:04:28]} Nxd4 {[%emt 0:00:35]} 21. Bxd4 {[%emt 0:00:07]} Bc6 {[%emt 0:00:15]} 22. Bc5+ {[%emt 0:00:57]} Ke8 {[%emt 0:00:13]} 23. Bf1 {[%emt 0:00:57]} Be4 {[%emt 0:05:25]} 24. Rd2 {[%emt 0:00:25]} Bc6 {[%emt 0:03:13]} 25. Bd3 {[%emt 0:00:26]} Rd8 {[%emt 0:04:51]} 26. f4 {[%emt 0:00:32]} g6 {[%emt 0:00:33]} 27. f5 {[%emt 0:00:31]} gxf5 {[%emt 0:00:29]} 28. Bxf5 {[%emt 0:00:29]} Rxd2 {[%emt 0:00:08]} 29. Kxd2 {[%emt 0:00:01]} Rd8+ {[%emt 0:00:11]} 30. Kc1 {[%emt 0:00:29]} h5 {[%emt 0:02:34]} 31. Bd3 {[%emt 0:00:44]} Nd7 {[%emt 0:00:32]} 32. Bd4 {[%emt 0:00:51]} Ke7 {[%emt 0:05:41]} 33. Be2 {[%emt 0:00:25]} e5 {[%emt 0:06:25]} 34. Bxh5 {[%emt 0:00:14]} Ke6 {[%emt 0:00:44]} 35. g4 {[%emt 0:00:52]} Rh8 {[%emt 0:03:55]} 36. Bc3 {[%emt 0:00:27]} f6 {[%emt 0:01:45]} 37. Bd2 {[%emt 0:00:31]} Nb6 {[%emt 0:00:20]} 38. Bf4 {[%emt 0:00:29]} Nc4 {[%emt 0:03:02]} 39. Bg3 {[%emt 0:00:24]} Rh6 $11 {[%emt 0:01:51]} 40. Bf2 {[%emt 0:00:30]} Nxa3 {[%emt 0:01:10]} 41. Rd1 {[%emt 0:00:25]} Be4 {[%emt 0:01:19]} 42. Bc5 {[%emt 0:00:37]} Nc4 {[%emt 0:02:38]} 43. Rd8 {[%emt 0:00:09]} Rh7 {[%emt 0:00:29]} 44. Re8+ {[%emt 0:00:48]} Kd7 {[%emt 0:00:48]} 45. Rf8 {[%emt 0:00:16]} Ke6 {[%emt 0:01:20]} 46. Re8+ {[%emt 0:00:25]} Kd7 {[%emt 0:00:21]} 47. Rf8 {[%emt 0:00:23]} Ke6 {[%emt 0:01:28]} 48. Re8+ 1/2-1/2